[Event "Titled Tuesday Blitz March 22 Early 2022"]
[White "Gaehwiler, Gabriel"]
[Black "Paravyan, David"]
[WhiteFideId "1314530"]
[BlackFideId "4194985"]
[WhiteElo "2383"]
[BlackElo "2569"]
[Result "1/2-1/2"]
[Round "04"]
[TimeControl "180+1"]
[Date "2022.03.22"]
[WhiteClock "0:01:00"]
[BlackClock "0:02:09"]

1. d4 {[%clk 0:02:58]}  Nf6 {[%clk 0:03:00]} 2. Nf3 {[%clk 0:02:56]}  g6 {[%clk 0:03:00]} 3. c4 {[%clk 0:02:54]}  Bg7 {[%clk 0:03:01]} 4. g3 {[%clk 0:02:54]}  c6 {[%clk 0:03:01]} 5. Bg2 {[%clk 0:02:54]}  d5 {[%clk 0:03:02]} 6. cxd5 {[%clk 0:02:55]}  cxd5 {[%clk 0:03:02]} 7. Nc3 {[%clk 0:02:55]}  Ne4 {[%clk 0:03:02]} 8. O-O {[%clk 0:02:55]}  O-O {[%clk 0:03:01]} 9. Qb3 {[%clk 0:02:53]}  Nxc3 {[%clk 0:02:59]} 10. bxc3 {[%clk 0:02:54]}  Nc6 {[%clk 0:02:58]} 11. Bf4 {[%clk 0:02:49]}  Na5 {[%clk 0:02:53]} 12. Qb4 {[%clk 0:02:44]}  b6 {[%clk 0:02:52]} 13. Nd2 {[%clk 0:02:28]}  Bb7 {[%clk 0:02:51]} 14. e4 {[%clk 0:02:23]}  dxe4 {[%clk 0:02:50]} 15. Nxe4 {[%clk 0:02:09]}  Rc8 {[%clk 0:02:49]} 16. Rfd1 {[%clk 0:01:58]}  Qd7 {[%clk 0:02:46]} 17. Nc5 {[%clk 0:01:39]}  bxc5 {[%clk 0:02:38]} 18. dxc5 {[%clk 0:01:39]}  Qf5 {[%clk 0:02:24]} 19. Bxb7 {[%clk 0:01:24]}  Nxb7 {[%clk 0:02:24]} 20. Qxb7 {[%clk 0:01:24]}  Qxc5 {[%clk 0:02:24]} 21. Be3 {[%clk 0:01:19]}  Qc7 {[%clk 0:02:19]} 22. Rd7 {[%clk 0:01:11]}  Qxb7 {[%clk 0:02:12]} 23. Rxb7 {[%clk 0:01:12]}  Rxc3 {[%clk 0:02:13]} 24. Rd1 {[%clk 0:01:08]}  Ra3 {[%clk 0:02:10]} 25. Rxe7 {[%clk 0:00:59]}  Rxa2 {[%clk 0:02:09]} 26. Rxa7 {[%clk 0:01:00]}  Rxa7 {[%clk 0:02:10]} 27. Bxa7 {[%clk 0:01:00]}  Ra8 {[%clk 0:02:10]} 28. Bb6 {[%clk 0:01:00]}  h5 {[%clk 0:02:10]} 29. Rd8+ {[%clk 0:01:00]}  Rxd8 {[%clk 0:02:10]} 30. Bxd8 {[%clk 0:01:00]}  Kh7 {[%clk 0:02:11]} 31. Kg2 {[%clk 0:01:00]}  Bd4 {[%clk 0:02:09]} 1/2-1/2


[Site "https://www.chess.com"]

[Event "Titled Tuesday Blitz March 22 Early 2022"]
[White "Garv Gaur"]
[Black "Skliarov, Viktor"]
[WhiteFideId "45030839"]
[BlackFideId "14106736"]
[WhiteElo "1950"]
[BlackElo "2229"]
[Result "0-1"]
[Round "04"]
[TimeControl "180+1"]
[Date "2022.03.22"]
[WhiteClock "0:00:04"]
[BlackClock "0:00:12"]

1. d4 {[%clk 0:02:58]}  Nf6 {[%clk 0:02:40]} 2. Nf3 {[%clk 0:02:57]}  g6 {[%clk 0:02:40]} 3. c4 {[%clk 0:02:57]}  Bg7 {[%clk 0:02:41]} 4. g3 {[%clk 0:02:58]}  O-O {[%clk 0:02:41]} 5. Bg2 {[%clk 0:02:57]}  c6 {[%clk 0:02:42]} 6. O-O {[%clk 0:02:53]}  d5 {[%clk 0:02:42]} 7. a4 {[%clk 0:02:53]}  dxc4 {[%clk 0:02:41]} 8. Na3 {[%clk 0:02:52]}  Nbd7 {[%clk 0:02:27]} 9. Nxc4 {[%clk 0:02:51]}  Nb6 {[%clk 0:02:28]} 10. Nce5 {[%clk 0:02:51]}  Nfd7 {[%clk 0:02:25]} 11. Nd3 {[%clk 0:02:50]}  a5 {[%clk 0:02:22]} 12. b3 {[%clk 0:02:33]}  c5 {[%clk 0:01:47]} 13. Bb2 {[%clk 0:02:33]}  c4 {[%clk 0:01:47]} 14. bxc4 {[%clk 0:02:34]}  Nxc4 {[%clk 0:01:47]} 15. Bc3 {[%clk 0:02:34]}  Ndb6 {[%clk 0:01:37]} 16. Nc5 {[%clk 0:02:26]}  Nd5 {[%clk 0:01:33]} 17. Qd3 {[%clk 0:02:18]}  Nxc3 {[%clk 0:01:26]} 18. Qxc3 {[%clk 0:02:12]}  Nd6 {[%clk 0:01:21]} 19. Rfd1 {[%clk 0:02:06]}  Bf5 {[%clk 0:01:05]} 20. Ne5 {[%clk 0:01:51]}  Rc8 {[%clk 0:00:52]} 21. Qb3 {[%clk 0:01:48]}  b6 {[%clk 0:00:50]} 22. Ncd3 {[%clk 0:01:17]}  Be4 {[%clk 0:00:50]} 23. Rac1 {[%clk 0:01:14]}  Bxg2 {[%clk 0:00:43]} 24. Kxg2 {[%clk 0:01:15]}  Rxc1 {[%clk 0:00:42]} 25. Rxc1 {[%clk 0:01:14]}  Qa8+ {[%clk 0:00:42]} 26. Kg1 {[%clk 0:01:10]}  Qe4 {[%clk 0:00:36]} 27. Qxb6 {[%clk 0:01:02]}  Qxe2 {[%clk 0:00:33]} 28. Nf4 {[%clk 0:01:02]}  Qd2 {[%clk 0:00:27]} 29. Qc6 {[%clk 0:00:55]}  Qxd4 {[%clk 0:00:24]} 30. Nd7 {[%clk 0:00:54]}  Ne4 {[%clk 0:00:14]} 31. Rc2 {[%clk 0:00:48]}  Rd8 {[%clk 0:00:14]} 32. Nd5 {[%clk 0:00:45]}  Bf6 {[%clk 0:00:10]} 33. Kg2 {[%clk 0:00:31]}  Kg7 {[%clk 0:00:10]} 34. Re2 {[%clk 0:00:24]}  e6 {[%clk 0:00:09]} 35. N5xf6 {[%clk 0:00:18]}  Nxf6 {[%clk 0:00:10]} 36. Nxf6 {[%clk 0:00:13]}  Kxf6 {[%clk 0:00:11]} 37. Qf3+ {[%clk 0:00:11]}  Kg7 {[%clk 0:00:11]} 38. Re4 {[%clk 0:00:11]}  Qd5 {[%clk 0:00:11]} 39. Rf4 {[%clk 0:00:07]}  Qxf3+ {[%clk 0:00:11]} 40. Kxf3 {[%clk 0:00:07]}  Rd3+ {[%clk 0:00:11]} 41. Ke2 {[%clk 0:00:07]}  Ra3 {[%clk 0:00:11]} 42. Rc4 {[%clk 0:00:07]}  Kf6 {[%clk 0:00:11]} 43. h3 {[%clk 0:00:03]}  h5 {[%clk 0:00:11]} 44. Kf1 {[%clk 0:00:03]}  e5 {[%clk 0:00:11]} 45. Kg2 {[%clk 0:00:03]}  Kf5 {[%clk 0:00:11]} 46. f3 {[%clk 0:00:02]}  Ra2+ {[%clk 0:00:11]} 47. Kg1 {[%clk 0:00:03]}  f6 {[%clk 0:00:11]} 48. Re4 {[%clk 0:00:02]}  g5 {[%clk 0:00:11]} 49. Rc4 {[%clk 0:00:03]}  Ke6 {[%clk 0:00:11]} 50. Rc6+ {[%clk 0:00:02]}  Ke7 {[%clk 0:00:11]} 51. Rc7+ {[%clk 0:00:02]}  Kd6 {[%clk 0:00:11]} 52. Rc4 {[%clk 0:00:03]}  Kd5 {[%clk 0:00:11]} 53. Rc7 {[%clk 0:00:02]}  Rxa4 {[%clk 0:00:10]} 54. Ra7 {[%clk 0:00:03]}  Ra2 {[%clk 0:00:10]} 55. g4 {[%clk 0:00:03]}  hxg4 {[%clk 0:00:10]} 56. hxg4 {[%clk 0:00:04]}  a4 {[%clk 0:00:11]} 57. Rd7+ {[%clk 0:00:03]}  Ke6 {[%clk 0:00:11]} 58. Rb7 {[%clk 0:00:03]}  a3 {[%clk 0:00:11]} 59. Rb6+ {[%clk 0:00:02]}  Kd5 {[%clk 0:00:10]} 60. Rb4 {[%clk 0:00:03]}  Rb2 {[%clk 0:00:10]} 61. Ra4 {[%clk 0:00:03]}  a2 {[%clk 0:00:11]} 62. Ra5+ {[%clk 0:00:02]}  Kc4 {[%clk 0:00:11]} 63. Ra4+ {[%clk 0:00:03]}  Kb5 {[%clk 0:00:11]} 64. Ra3 {[%clk 0:00:03]}  Rb1+ {[%clk 0:00:11]} 65. Kf2 {[%clk 0:00:04]}  a1=Q {[%clk 0:00:12]} 0-1


[Site "https://www.chess.com"]

[Event "Titled Tuesday Blitz March 22 Early 2022"]
[White "Golubka, Petro"]
[Black "Reprintsev, Alexander"]
[WhiteFideId "14114224"]
[BlackFideId "14100541"]
[WhiteElo "2346"]
[BlackElo "2108"]
[Result "1-0"]
[Round "04"]
[TimeControl "180+1"]
[Date "2022.03.22"]
[WhiteClock "0:01:51"]
[BlackClock "0:01:14"]

1. e4 {[%clk 0:03:00]}  d5 {[%clk 0:02:59]} 2. exd5 {[%clk 0:03:00]}  Qxd5 {[%clk 0:02:58]} 3. Nc3 {[%clk 0:03:01]}  Qa5 {[%clk 0:02:58]} 4. Nf3 {[%clk 0:03:02]}  Nf6 {[%clk 0:02:57]} 5. b4 {[%clk 0:03:01]}  Qxb4 {[%clk 0:02:56]} 6. Rb1 {[%clk 0:03:02]}  Qd6 {[%clk 0:02:56]} 7. d4 {[%clk 0:03:02]}  e6 {[%clk 0:02:55]} 8. Nb5 {[%clk 0:03:01]}  Qd8 {[%clk 0:02:54]} 9. Bf4 {[%clk 0:03:02]}  Na6 {[%clk 0:02:42]} 10. c4 {[%clk 0:03:00]}  c6 {[%clk 0:02:37]} 11. Nc3 {[%clk 0:02:59]}  Bb4 {[%clk 0:02:35]} 12. Bd2 {[%clk 0:02:59]}  O-O {[%clk 0:02:30]} 13. Be2 {[%clk 0:02:56]}  c5 {[%clk 0:02:28]} 14. dxc5 {[%clk 0:02:56]}  Qa5 {[%clk 0:02:23]} 15. Qc2 {[%clk 0:02:54]}  Rd8 {[%clk 0:02:19]} 16. O-O {[%clk 0:02:43]}  Rxd2 {[%clk 0:02:16]} 17. Nxd2 {[%clk 0:02:44]}  Bxc3 {[%clk 0:02:16]} 18. Nb3 {[%clk 0:02:44]}  Qb4 {[%clk 0:02:09]} 19. a3 {[%clk 0:02:43]}  Qxa3 {[%clk 0:02:07]} 20. Qxc3 {[%clk 0:02:43]}  Nxc5 {[%clk 0:02:01]} 21. Qd4 {[%clk 0:02:39]}  Nxb3 {[%clk 0:01:59]} 22. Rxb3 {[%clk 0:02:36]}  Qe7 {[%clk 0:01:57]} 23. Ra1 {[%clk 0:02:33]}  a5 {[%clk 0:01:45]} 24. Rb5 {[%clk 0:02:17]}  a4 {[%clk 0:01:41]} 25. h3 {[%clk 0:02:11]}  g6 {[%clk 0:01:40]} 26. Bf3 {[%clk 0:02:09]}  a3 {[%clk 0:01:39]} 27. Qc3 {[%clk 0:02:08]}  Ne8 {[%clk 0:01:28]} 28. Rb4 {[%clk 0:02:01]}  Qf6 {[%clk 0:01:22]} 29. Rxa3 {[%clk 0:01:57]}  Qxc3 {[%clk 0:01:19]} 30. Rxc3 {[%clk 0:01:56]}  Kf8 {[%clk 0:01:16]} 31. Bxb7 {[%clk 0:01:53]}  Bxb7 {[%clk 0:01:13]} 32. Rxb7 {[%clk 0:01:52]}  Rc8 {[%clk 0:01:14]} 33. c5 {[%clk 0:01:51]}  Nd6 {[%clk 0:01:13]} 34. cxd6 {[%clk 0:01:50]}  Rxc3 {[%clk 0:01:14]} 35. Rb8+ {[%clk 0:01:51]} 1-0


[Site "https://www.chess.com"]

[Event "Titled Tuesday Blitz March 22 Early 2022"]
[White "Grandelius, Nils"]
[Black "Petrosyan, Manuel"]
[WhiteFideId "1710400"]
[BlackFideId "13300857"]
[WhiteElo "2617"]
[BlackElo "2592"]
[Result "0-1"]
[Round "04"]
[TimeControl "180+1"]
[Date "2022.03.22"]
[WhiteClock "0:00:04"]
[BlackClock "0:00:05"]

1. c4 {[%clk 0:03:00]}  e6 {[%clk 0:02:55]} 2. g3 {[%clk 0:03:00]}  d5 {[%clk 0:02:55]} 3. Bg2 {[%clk 0:03:01]}  Nf6 {[%clk 0:02:55]} 4. Nf3 {[%clk 0:02:58]}  d4 {[%clk 0:02:55]} 5. O-O {[%clk 0:02:56]}  Nc6 {[%clk 0:02:55]} 6. d3 {[%clk 0:02:53]}  Bc5 {[%clk 0:02:52]} 7. Nbd2 {[%clk 0:02:52]}  a5 {[%clk 0:02:52]} 8. Nb3 {[%clk 0:02:52]}  Be7 {[%clk 0:02:45]} 9. e3 {[%clk 0:02:50]}  dxe3 {[%clk 0:02:45]} 10. Bxe3 {[%clk 0:02:51]}  Ng4 {[%clk 0:02:41]} 11. Bc5 {[%clk 0:02:43]}  a4 {[%clk 0:02:35]} 12. Bxe7 {[%clk 0:02:43]}  Qxe7 {[%clk 0:02:36]} 13. Nbd2 {[%clk 0:02:33]}  a3 {[%clk 0:02:28]} 14. b3 {[%clk 0:02:25]}  O-O {[%clk 0:02:28]} 15. Re1 {[%clk 0:02:20]}  Rd8 {[%clk 0:02:26]} 16. Ne4 {[%clk 0:02:12]}  e5 {[%clk 0:02:06]} 17. Qe2 {[%clk 0:01:59]}  Bf5 {[%clk 0:01:50]} 18. Rad1 {[%clk 0:01:58]}  Qb4 {[%clk 0:01:38]} 19. h3 {[%clk 0:01:13]}  Bxe4 {[%clk 0:01:37]} 20. Qxe4 {[%clk 0:01:12]}  Nf6 {[%clk 0:01:37]} 21. Qe3 {[%clk 0:01:09]}  Re8 {[%clk 0:01:37]} 22. Qd2 {[%clk 0:00:58]}  Rad8 {[%clk 0:01:14]} 23. Qc1 {[%clk 0:00:42]}  h6 {[%clk 0:01:09]} 24. Re3 {[%clk 0:00:42]}  Nd7 {[%clk 0:01:00]} 25. d4 {[%clk 0:00:32]}  exd4 {[%clk 0:01:00]} 26. Nxd4 {[%clk 0:00:32]}  Nxd4 {[%clk 0:00:55]} 27. Rxd4 {[%clk 0:00:33]}  Nc5 {[%clk 0:00:51]} 28. Qd1 {[%clk 0:00:22]}  Rb8 {[%clk 0:00:43]} 29. Rxe8+ {[%clk 0:00:20]}  Rxe8 {[%clk 0:00:44]} 30. Rd8 {[%clk 0:00:18]}  Kf8 {[%clk 0:00:35]} 31. Rxe8+ {[%clk 0:00:12]}  Kxe8 {[%clk 0:00:34]} 32. Qg4 {[%clk 0:00:12]}  Qe1+ {[%clk 0:00:25]} 33. Kh2 {[%clk 0:00:12]}  Ne6 {[%clk 0:00:22]} 34. c5 {[%clk 0:00:07]}  Qxf2 {[%clk 0:00:20]} 35. Qa4+ {[%clk 0:00:07]}  Ke7 {[%clk 0:00:20]} 36. c6 {[%clk 0:00:07]}  bxc6 {[%clk 0:00:15]} 37. Qxa3+ {[%clk 0:00:08]}  c5 {[%clk 0:00:16]} 38. Qa7 {[%clk 0:00:08]}  h5 {[%clk 0:00:14]} 39. h4 {[%clk 0:00:08]}  g5 {[%clk 0:00:12]} 40. hxg5 {[%clk 0:00:09]}  h4 {[%clk 0:00:13]} 41. gxh4 {[%clk 0:00:07]}  Qxh4+ {[%clk 0:00:12]} 42. Kg1 {[%clk 0:00:08]}  Qe1+ {[%clk 0:00:12]} 43. Kh2 {[%clk 0:00:08]}  Qe5+ {[%clk 0:00:12]} 44. Kg1 {[%clk 0:00:09]}  Qxg5 {[%clk 0:00:12]} 45. Qb7 {[%clk 0:00:06]}  Qe3+ {[%clk 0:00:11]} 46. Kh2 {[%clk 0:00:07]}  Qe5+ {[%clk 0:00:11]} 47. Kg1 {[%clk 0:00:06]}  Qa1+ {[%clk 0:00:11]} 48. Kh2 {[%clk 0:00:07]}  Qxa2 {[%clk 0:00:11]} 49. Kg3 {[%clk 0:00:05]}  Qb2 {[%clk 0:00:09]} 50. Bd5 {[%clk 0:00:06]}  Qe5+ {[%clk 0:00:09]} 51. Kf3 {[%clk 0:00:04]}  Nd4+ {[%clk 0:00:07]} 52. Kg2 {[%clk 0:00:04]}  Qe2+ {[%clk 0:00:06]} 53. Kg3 {[%clk 0:00:05]}  Qe3+ {[%clk 0:00:07]} 54. Kg2 {[%clk 0:00:05]}  Qd2+ {[%clk 0:00:06]} 55. Kg3 {[%clk 0:00:05]}  Qg5+ {[%clk 0:00:06]} 56. Kf2 {[%clk 0:00:05]}  Qf4+ {[%clk 0:00:06]} 57. Kg2 {[%clk 0:00:04]}  Nf5 {[%clk 0:00:06]} 58. Be4 {[%clk 0:00:02]}  Qg3+ {[%clk 0:00:04]} 59. Kf1 {[%clk 0:00:02]}  Qf4+ {[%clk 0:00:03]} 60. Ke2 {[%clk 0:00:03]}  Ng3+ {[%clk 0:00:03]} 61. Kd3 {[%clk 0:00:03]}  Qxe4+ {[%clk 0:00:04]} 62. Qxe4+ {[%clk 0:00:03]}  Nxe4 {[%clk 0:00:05]} 63. Kxe4 {[%clk 0:00:04]}  Kd6 {[%clk 0:00:05]} 0-1


[Site "https://www.chess.com"]

[Event "Titled Tuesday Blitz March 22 Early 2022"]
[White "Grieve, Harry"]
[Black "Chyngyz, Sultai"]
[WhiteFideId "426520"]
[BlackFideId "13803158"]
[WhiteElo "2294"]
[BlackElo "1365"]
[Result "1-0"]
[Round "04"]
[TimeControl "180+1"]
[Date "2022.03.22"]
[WhiteClock "0:00:06"]
[BlackClock "0:00:50"]

1. d4 {[%clk 0:02:56]}  Nf6 {[%clk 0:02:59]} 2. Bg5 {[%clk 0:02:56]}  Ne4 {[%clk 0:02:58]} 3. Bf4 {[%clk 0:02:57]}  g6 {[%clk 0:02:58]} 4. f3 {[%clk 0:02:53]}  Nf6 {[%clk 0:02:58]} 5. e4 {[%clk 0:02:53]}  d6 {[%clk 0:02:57]} 6. Nc3 {[%clk 0:02:51]}  Bg7 {[%clk 0:02:57]} 7. Qd2 {[%clk 0:02:52]}  O-O {[%clk 0:02:57]} 8. Bh6 {[%clk 0:02:52]}  c6 {[%clk 0:02:58]} 9. Bxg7 {[%clk 0:02:48]}  Kxg7 {[%clk 0:02:58]} 10. O-O-O {[%clk 0:02:45]}  b5 {[%clk 0:02:58]} 11. h4 {[%clk 0:02:29]}  h5 {[%clk 0:02:52]} 12. Kb1 {[%clk 0:02:19]}  a5 {[%clk 0:02:48]} 13. g4 {[%clk 0:01:48]}  a4 {[%clk 0:02:43]} 14. gxh5 {[%clk 0:01:44]}  Nxh5 {[%clk 0:02:40]} 15. Nce2 {[%clk 0:01:41]}  Na6 {[%clk 0:02:26]} 16. Bh3 {[%clk 0:01:26]}  Bxh3 {[%clk 0:02:19]} 17. Nxh3 {[%clk 0:01:27]}  b4 {[%clk 0:02:18]} 18. Rdg1 {[%clk 0:01:21]}  b3 {[%clk 0:02:17]} 19. cxb3 {[%clk 0:01:13]}  axb3 {[%clk 0:02:16]} 20. axb3 {[%clk 0:01:14]}  Nc7 {[%clk 0:02:14]} 21. Qg5 {[%clk 0:00:53]}  Rh8 {[%clk 0:02:07]} 22. Nhf4 {[%clk 0:00:53]}  Nxf4 {[%clk 0:02:04]} 23. Nxf4 {[%clk 0:00:52]}  e5 {[%clk 0:01:54]} 24. dxe5 {[%clk 0:00:34]}  Qxg5 {[%clk 0:01:51]} 25. Rxg5 {[%clk 0:00:35]}  dxe5 {[%clk 0:01:48]} 26. Rxe5 {[%clk 0:00:35]}  Rab8 {[%clk 0:01:43]} 27. Re7 {[%clk 0:00:26]}  Nb5 {[%clk 0:01:42]} 28. h5 {[%clk 0:00:21]}  Nd4 {[%clk 0:01:32]} 29. Rg1 {[%clk 0:00:14]}  Kf6 {[%clk 0:01:30]} 30. Rd7 {[%clk 0:00:14]}  Nxf3 {[%clk 0:01:29]} 31. Rf1 {[%clk 0:00:14]}  Rxb3 {[%clk 0:01:27]} 32. Nd3 {[%clk 0:00:13]}  Ke6 {[%clk 0:01:11]} 33. Nc5+ {[%clk 0:00:12]}  Ke5 {[%clk 0:01:10]} 34. Nxb3 {[%clk 0:00:11]}  Kxe4 {[%clk 0:01:11]} 35. Re7+ {[%clk 0:00:09]}  Kf4 {[%clk 0:01:10]} 36. Nd4 {[%clk 0:00:08]}  gxh5 {[%clk 0:01:08]} 37. Rxf3+ {[%clk 0:00:08]}  Kg4 {[%clk 0:01:08]} 38. Rexf7 {[%clk 0:00:08]}  h4 {[%clk 0:01:07]} 39. R7f4+ {[%clk 0:00:08]}  Kg5 {[%clk 0:01:07]} 40. Ne6+ {[%clk 0:00:09]}  Kg6 {[%clk 0:01:07]} 41. Rf6+ {[%clk 0:00:09]}  Kh5 {[%clk 0:01:07]} 42. R3f5+ {[%clk 0:00:08]}  Kg4 {[%clk 0:01:08]} 43. Rg5+ {[%clk 0:00:09]}  Kh3 {[%clk 0:01:08]} 44. Rf3+ {[%clk 0:00:09]}  Kh2 {[%clk 0:01:08]} 45. Rf2+ {[%clk 0:00:10]}  Kh1 {[%clk 0:01:07]} 46. Nd4 {[%clk 0:00:06]}  Rf8 {[%clk 0:00:52]} 47. Rxf8 {[%clk 0:00:05]}  h3 {[%clk 0:00:50]} 48. Rf1+ {[%clk 0:00:05]}  Kh2 {[%clk 0:00:50]} 49. Nf3# {[%clk 0:00:06]} 1-0


[Site "https://www.chess.com"]

[Event "Titled Tuesday Blitz March 22 Early 2022"]
[White "Grischuk, Alexander"]
[Black "Babazada, Khazar"]
[WhiteFideId "4126025"]
[BlackFideId "13413554"]
[WhiteElo "2762"]
[BlackElo "2418"]
[Result "1/2-1/2"]
[Round "04"]
[TimeControl "180+1"]
[Date "2022.03.22"]
[WhiteClock "0:00:06"]
[BlackClock "0:00:05"]

1. e4 {[%clk 0:03:00]}  g6 {[%clk 0:03:00]} 2. d4 {[%clk 0:03:01]}  Bg7 {[%clk 0:03:00]} 3. Nf3 {[%clk 0:03:01]}  d6 {[%clk 0:03:00]} 4. Bd3 {[%clk 0:03:02]}  Nf6 {[%clk 0:03:01]} 5. O-O {[%clk 0:03:02]}  O-O {[%clk 0:03:01]} 6. Re1 {[%clk 0:03:02]}  Nc6 {[%clk 0:03:01]} 7. d5 {[%clk 0:03:03]}  Nb4 {[%clk 0:03:00]} 8. Bf1 {[%clk 0:03:03]}  Bg4 {[%clk 0:02:57]} 9. Na3 {[%clk 0:03:02]}  Nd7 {[%clk 0:02:49]} 10. h3 {[%clk 0:02:55]}  Bxf3 {[%clk 0:02:48]} 11. Qxf3 {[%clk 0:02:56]}  a5 {[%clk 0:02:43]} 12. Qd1 {[%clk 0:02:43]}  c6 {[%clk 0:02:42]} 13. c3 {[%clk 0:02:41]}  Na6 {[%clk 0:02:42]} 14. Bg5 {[%clk 0:02:36]}  Re8 {[%clk 0:02:34]} 15. Qd2 {[%clk 0:02:32]}  Qc7 {[%clk 0:02:29]} 16. Rad1 {[%clk 0:02:29]}  Nac5 {[%clk 0:02:23]} 17. Nc2 {[%clk 0:02:18]}  Nb6 {[%clk 0:02:05]} 18. h4 {[%clk 0:02:09]}  Qd7 {[%clk 0:01:55]} 19. h5 {[%clk 0:02:05]}  cxd5 {[%clk 0:01:55]} 20. exd5 {[%clk 0:02:03]}  Qa4 {[%clk 0:01:56]} 21. Bxe7 {[%clk 0:01:55]}  Qxa2 {[%clk 0:01:51]} 22. h6 {[%clk 0:01:48]}  Rxe7 {[%clk 0:01:37]} 23. Rxe7 {[%clk 0:01:42]}  Bf8 {[%clk 0:01:34]} 24. Rc7 {[%clk 0:01:36]}  Qxb2 {[%clk 0:01:31]} 25. Qf4 {[%clk 0:01:31]}  Nbd7 {[%clk 0:01:31]} 26. Nd4 {[%clk 0:01:23]}  Qxc3 {[%clk 0:01:29]} 27. Bb5 {[%clk 0:01:09]}  Ne5 {[%clk 0:01:21]} 28. Rc1 {[%clk 0:00:45]}  Qb2 {[%clk 0:01:02]} 29. R1xc5 {[%clk 0:00:21]}  dxc5 {[%clk 0:01:02]} 30. Nf3 {[%clk 0:00:21]}  Nxf3+ {[%clk 0:00:21]} 31. Qxf3 {[%clk 0:00:21]}  Qb1+ {[%clk 0:00:15]} 32. Bf1 {[%clk 0:00:18]}  Qf5 {[%clk 0:00:16]} 33. Qxf5 {[%clk 0:00:14]}  gxf5 {[%clk 0:00:17]} 34. Rxb7 {[%clk 0:00:14]}  a4 {[%clk 0:00:17]} 35. Bc4 {[%clk 0:00:15]}  a3 {[%clk 0:00:17]} 36. Ba2 {[%clk 0:00:15]}  c4 {[%clk 0:00:17]} 37. Rc7 {[%clk 0:00:15]}  Bxh6 {[%clk 0:00:16]} 38. d6 {[%clk 0:00:14]}  Bf4 {[%clk 0:00:14]} 39. Rc6 {[%clk 0:00:10]}  Rd8 {[%clk 0:00:12]} 40. g3 {[%clk 0:00:05]}  Bxd6 {[%clk 0:00:12]} 41. Bxc4 {[%clk 0:00:06]}  Kg7 {[%clk 0:00:12]} 42. Kg2 {[%clk 0:00:05]}  f4 {[%clk 0:00:11]} 43. g4 {[%clk 0:00:04]}  Kf6 {[%clk 0:00:10]} 44. Ra6 {[%clk 0:00:03]}  Ke5 {[%clk 0:00:11]} 45. Bxf7 {[%clk 0:00:04]}  Kd4 {[%clk 0:00:11]} 46. Kf3 {[%clk 0:00:03]}  Kc3 {[%clk 0:00:11]} 47. Rc6+ {[%clk 0:00:03]}  Kb4 {[%clk 0:00:08]} 48. Rb6+ {[%clk 0:00:03]}  Ka5 {[%clk 0:00:08]} 49. Rb7 {[%clk 0:00:04]}  Bc5 {[%clk 0:00:07]} 50. Bc4 {[%clk 0:00:03]}  Rd2 {[%clk 0:00:04]} 51. Rb5+ {[%clk 0:00:03]}  Ka4 {[%clk 0:00:02]} 52. Rxc5 {[%clk 0:00:03]}  Kb4 {[%clk 0:00:03]} 53. Rc7 {[%clk 0:00:03]}  Rc2 {[%clk 0:00:03]} 54. Rxh7 {[%clk 0:00:02]}  Kxc4 {[%clk 0:00:03]} 55. Ra7 {[%clk 0:00:02]}  Kb3 {[%clk 0:00:03]} 56. g5 {[%clk 0:00:02]}  a2 {[%clk 0:00:03]} 57. g6 {[%clk 0:00:02]}  Rc6 {[%clk 0:00:02]} 58. g7 {[%clk 0:00:03]}  Rg6 {[%clk 0:00:02]} 59. Rb7+ {[%clk 0:00:03]}  Ka3 {[%clk 0:00:02]} 60. Ra7+ {[%clk 0:00:04]}  Kb3 {[%clk 0:00:03]} 61. Rb7+ {[%clk 0:00:04]}  Kc3 {[%clk 0:00:03]} 62. Ra7 {[%clk 0:00:05]}  Kb2 {[%clk 0:00:04]} 63. Rb7+ {[%clk 0:00:05]}  Kc2 {[%clk 0:00:04]} 64. Rc7+ {[%clk 0:00:04]}  Kb2 {[%clk 0:00:05]} 65. Rb7+ {[%clk 0:00:05]}  Kc2 {[%clk 0:00:04]} 66. Rc7+ {[%clk 0:00:05]}  Kb2 {[%clk 0:00:05]} 67. Rb7+ {[%clk 0:00:06]} 1/2-1/2


[Site "https://www.chess.com"]

[Event "Titled Tuesday Blitz March 22 Early 2022"]
[White "Guseva, Marina"]
[Black "Kowalczyk, Pawel"]
[WhiteFideId "4149351"]
[BlackFideId "1130641"]
[WhiteElo "2160"]
[BlackElo "2344"]
[Result "1-0"]
[Round "04"]
[TimeControl "180+1"]
[Date "2022.03.22"]
[WhiteClock "0:00:06"]
[BlackClock "0:00:04"]

1. d4 {[%clk 0:02:55]}  Nf6 {[%clk 0:02:59]} 2. Nf3 {[%clk 0:02:53]}  g6 {[%clk 0:02:58]} 3. Bf4 {[%clk 0:02:52]}  Bg7 {[%clk 0:02:58]} 4. e3 {[%clk 0:02:52]}  O-O {[%clk 0:02:59]} 5. Be2 {[%clk 0:02:52]}  c5 {[%clk 0:03:00]} 6. O-O {[%clk 0:02:50]}  b6 {[%clk 0:02:53]} 7. a4 {[%clk 0:02:48]}  Nc6 {[%clk 0:02:50]} 8. c3 {[%clk 0:02:45]}  d6 {[%clk 0:02:49]} 9. h3 {[%clk 0:02:45]}  Bb7 {[%clk 0:02:48]} 10. Nbd2 {[%clk 0:02:42]}  Re8 {[%clk 0:02:46]} 11. Bh2 {[%clk 0:02:41]}  Qc7 {[%clk 0:02:41]} 12. Qb3 {[%clk 0:01:59]}  Rad8 {[%clk 0:02:39]} 13. Nc4 {[%clk 0:01:54]}  Qc8 {[%clk 0:02:24]} 14. Qa3 {[%clk 0:01:44]}  Ne4 {[%clk 0:02:19]} 15. Rfd1 {[%clk 0:01:39]}  h6 {[%clk 0:02:13]} 16. Rac1 {[%clk 0:01:33]}  Ba6 {[%clk 0:02:06]} 17. Bd3 {[%clk 0:01:02]}  Bxc4 {[%clk 0:01:59]} 18. Bxc4 {[%clk 0:00:57]}  d5 {[%clk 0:01:58]} 19. Bd3 {[%clk 0:00:44]}  e5 {[%clk 0:01:34]} 20. Bb5 {[%clk 0:00:40]}  exd4 {[%clk 0:01:28]} 21. cxd4 {[%clk 0:00:39]}  c4 {[%clk 0:01:26]} 22. b3 {[%clk 0:00:24]}  c3 {[%clk 0:01:18]} 23. Ne5 {[%clk 0:00:21]}  Bxe5 {[%clk 0:01:09]} 24. Bxe5 {[%clk 0:00:21]}  Re6 {[%clk 0:01:07]} 25. Bf4 {[%clk 0:00:18]}  g5 {[%clk 0:01:06]} 26. Bh2 {[%clk 0:00:18]}  a5 {[%clk 0:01:00]} 27. f3 {[%clk 0:00:17]}  Nb4 {[%clk 0:00:45]} 28. fxe4 {[%clk 0:00:17]}  Rxe4 {[%clk 0:00:46]} 29. Qa1 {[%clk 0:00:15]}  Rxe3 {[%clk 0:00:45]} 30. Kh1 {[%clk 0:00:14]}  c2 {[%clk 0:00:41]} 31. Re1 {[%clk 0:00:14]}  Rxb3 {[%clk 0:00:35]} 32. Re2 {[%clk 0:00:12]}  Qf5 {[%clk 0:00:33]} 33. Bg3 {[%clk 0:00:11]}  Rb1 {[%clk 0:00:33]} 34. Qa3 {[%clk 0:00:10]}  Qf1+ {[%clk 0:00:28]} 35. Rxf1 {[%clk 0:00:09]}  Rxf1+ {[%clk 0:00:28]} 36. Kh2 {[%clk 0:00:09]}  c1=Q {[%clk 0:00:28]} 37. Qxc1 {[%clk 0:00:09]}  Rxc1 {[%clk 0:00:28]} 38. Re7 {[%clk 0:00:09]}  Kf8 {[%clk 0:00:21]} 39. Rb7 {[%clk 0:00:08]}  Rd1 {[%clk 0:00:18]} 40. Bc7 {[%clk 0:00:07]}  Kg8 {[%clk 0:00:18]} 41. Bxd8 {[%clk 0:00:07]}  Rxd4 {[%clk 0:00:16]} 42. Bxb6 {[%clk 0:00:07]}  Rd2 {[%clk 0:00:15]} 43. Bxa5 {[%clk 0:00:07]}  Rb2 {[%clk 0:00:15]} 44. Bxb4 {[%clk 0:00:08]}  Rxb4 {[%clk 0:00:15]} 45. Rd7 {[%clk 0:00:08]}  d4 {[%clk 0:00:15]} 46. Bc6 {[%clk 0:00:08]}  f5 {[%clk 0:00:14]} 47. a5 {[%clk 0:00:08]}  Kf8 {[%clk 0:00:13]} 48. a6 {[%clk 0:00:08]}  Ra4 {[%clk 0:00:04]} 49. Bxa4 {[%clk 0:00:06]}  d3 {[%clk 0:00:04]} 1-0


[Site "https://www.chess.com"]